Cogmind - Beta 13 X2 @@@ ROGUE MODE // 2024.06.05 @ 14:44:23 Player: btmk16 Result: Self-destructed Performance ------------- Evolutions (2) 1000 Regions Visited (4) 800 Robots Destroyed (30) 150 Value Destroyed (665) 665 Prototype IDs (0) 0 Alien Tech Used (0) 0 Bonus (0) 0 TOTAL SCORE: 2615 Bonus ------- None Cogmind --------- Core Integrity 472/550 Matter 167/300 Energy 100/100 System Corruption 0% Temperature Cool (0) Movement Treading (250) Ox1 Location -8/Materials Parts ------- > --- POWER (1) -------- (None) > --- PROPULSION (2) --- Armored Treads > --- UTILITY (6) ------ Large Storage Unit Makeshift Light Armor Plating > --- WEAPON (2) ------- (None) > --- INVENTORY (15) --- Light Treads Light Treads Light Treads Light Treads Light Treads Wheel Compact Wheel Small Storage Unit High-capacity Storage Unit Improved Terrain Scanner Improved Light Armor Plating EM Pulse Gun Beam Cannon Grenade Launcher Rocket Launcher Peak State ------------ > --- POWER ------------ Light Deuterium Engine > --- PROPULSION ------- Light Treads Armored Treads > --- UTILITY ---------- Large Storage Unit Makeshift Light Armor Plating > --- WEAPON ----------- Subdweller Beam Cannon > --- INVENTORY -------- Light Treads Light Treads Light Treads Light Treads Light Treads Wheel Compact Wheel Small Storage Unit High-capacity Storage Unit Improved Terrain Scanner Improved Light Armor Plating EM Pulse Gun Beam Cannon Grenade Launcher Rocket Launcher [Rating: 16] Favorites ----------- Power Ion Engine Engine Ion Engine Propulsion Light Treads Treads Light Treads Utility Large Storage Unit Device Seismic Detector Storage Large Storage Unit Protection Makeshift Light Armor Plating Weapon Battle Cannon Energy Cannon Subdweller Beam Cannon Ballistic Gun Assault Rifle Ballistic Cannon Battle Cannon Launcher Rocket Launcher Build | -11 -10 -10 -10 -8 ------- Run | Yrd Mat Min Sub Mat Slots Evolved 4 | . . . . 4 Power . | . . . . . Propulsion . | . . . . . Utility 4 | . . . . 4 Weapon . | . . . . . Parts Attached 32 | 7 11 2 10 2 Power 5 | 1 2 . 1 1 Engine 5 | 1 2 . 1 1 Core . | . . . . . Reactor . | . . . . . Propulsion 9 | 2 5 . 1 1 Treads 9 | 2 5 . 1 1 Leg . | . . . . . Wheel . | . . . . . Hover . | . . . . . Flight . | . . . . . Utility 6 | 2 1 . 3 . Device 2 | 1 . . 1 . Storage 2 | 1 1 . . . Processor . | . . . . . Hackware . | . . . . . Protection 2 | . . . 2 . Artifact . | . . . . . Weapon 12 | 2 3 2 5 . Energy Gun . | . . . . . Energy Cannon 4 | . 1 1 2 . Ballistic Gun 4 | 2 2 . . . Ballistic Cannon 2 | . . . 2 . Launcher 2 | . . 1 1 . Special Weapon . | . . . . . Impact Weapon . | . . . . . Slashing Weapon . | . . . . . Piercing Weapon . | . . . . . Special Melee Weapon . | . . . . . Unidentified Prototypes . | . . . . . Parts Lost 6 | . . . 3 3 Power 3 | . . . 2 1 Propulsion 1 | . . . . 1 Utility . | . . . . . Weapon 2 | . . . 1 1 Highest Loss Streak 3 | . . . 2 3 To Critical Strikes . | . . . . . Average Slot Usage (%) 98 | . 99 100 99 50 Engine 13 | . 14 14 13 8 Treads 27 | . 27 28 27 16 Device 4 | . 14 14 . . Storage 13 | . 14 14 14 9 Protection 9 | . . . 13 9 Energy Cannon 13 | . 13 13 14 7 Ballistic Gun 5 | . 14 14 . . Ballistic Cannon 8 | . . . 13 . Naked Turns . | . . . . . Heaviest Build 43 | 14 31 31 43 37 Greatest Support 40 | 40 40 40 40 40 Greatest Overweight (x) 1 | 1 1 . 1 1 Average Overweight (x) . | . . . . . Largest Inventory Capacity 15 | 8 15 15 15 15 Average Capacity 14 | 7 11 15 15 15 Most Carried 15 | 7 14 15 15 15 Average Carried 13 | 4 8 14 14 15 Final Capacity 15 | 8 15 15 15 15 Final Carried 15 | 7 14 15 15 15 Class Distribution -------------------- 100% | Mutant Dominant Class ---------------- Mutant | -10/Materials Mutant | -10/Mines Mutant | -10/Subcaves Mutant | -8/Materials Resources | -11 -10 -10 -10 -8 ----------- Run | Yrd Mat Min Sub Mat Matter Collected 1150 | 246 159 131 614 . Remotely . | . . . . . Salvage Created 901 | 124 412 36 329 . Parts 73 | 10 29 8 26 . Haulers Intercepted 1 | . 1 . . . Recyclers Shooed . | . . . . . Parts Field Recycled . | . . . . . Retrieved Matter . | . . . . . Parts Self-Destructed 14 | . . . 14 . Prevented . | . . . . . Kills | -11 -10 -10 -10 -8 ------- Run | Yrd Mat Min Sub Mat Combat Hostiles Destroyed 21 | . 8 2 11 . Guns 2 | . 2 . . . Cannons 17 | . 6 . 11 . AOE 2 | . . 2 . . Classes Destroyed 9 | 2 3 1 3 . Worker 1 | . . 1 . . Tunneler 3 | 3 . . . . Hauler 1 | . 1 . . . Recycler 2 | 1 1 . . . Turret 2 | . . . 2 . Swarmer 9 | . 3 2 4 . Grunt 7 | . 5 . 2 . Sentry 1 | . . . 1 . Subdweller 4 | . . . 4 . Best Kill Streak 4 | 4 4 2 3 . Combat Bots Only 3 | . 3 2 3 . Max Kills in Single Turn 2 | 2 1 2 2 . Gunslinging . | . . . . . Exploded 2 | . . 2 . . Melee . | . . . . . Uniques/NPCs Destroyed . | . . . . . Combat | -11 -10 -10 -10 -8 -------- Run | Yrd Mat Min Sub Mat Hostile Shots Fired 216 | . 44 4 115 53 Missed 72 | . 12 1 50 9 Damage Taken 1421 | . 323 22 732 344 Core 268 | . 62 . 128 78 Absorbed by Shields . | . . . . . Core Remaining (%) 62 | 100 . . 24 . Volleys Fired 109 | 4 29 3 72 1 Largest 2 | 2 2 2 2 1 Hottest 119 | 40 80 80 119 80 Shots Fired 181 | 8 59 6 107 1 Gun 43 | 8 29 2 4 . Cannon 130 | . 30 3 96 1 Launcher 8 | . . 1 7 . Special . | . . . . . Kinetic 104 | 8 29 2 65 . Thermal 69 | . 30 3 35 1 Explosive 8 | . . 1 7 . Electromagnetic . | . . . . . Robot Hit Streak 9 | 4 7 3 9 . Robot Miss Streak 4 | 1 4 1 3 1 Penetration Max . | . . . . . Secondary Targets . | . . . . . Shots Hit Robots 80 | 4 35 3 38 . Core Hits 44 | 5 13 4 21 1 Critical Kills . | . . . . . Critical Parts Destroyed 1 | . 1 . . . Critical Strikes 2 | . 1 . 1 . Destroy 1 | . 1 . . . Blast 1 | . . . 1 . Melee Attacks . | . . . . . Impact . | . . . . . Slashing . | . . . . . Piercing . | . . . . . Sneak Attacks . | . . . . . Combat Hostiles . | . . . . . Follow-up Attacks . | . . . . . Damage Inflicted 1816 | 59 555 147 1044 11 Guns 260 | 59 188 13 . . Cannons 1190 | . 367 34 789 . Explosions 355 | . . 100 255 . Melee . | . . . . . Ramming 11 | . . . . 11 Kinetic 666 | 59 188 13 406 . Thermal 784 | . 367 34 383 . Explosive 355 | . . 100 255 . Electromagnetic . | . . . . . Impact . | . . . . . Slashing . | . . . . . Piercing . | . . . . . Highest Corruption 5 | . 5 5 5 . Average Corruption 4 | . 4 5 5 . Corruption Purged . | . . . . . Corruption Blocked . | . . . . . Effects 138 | . 19 27 92 . Message Errors 31 | . 3 7 21 . Matter Fused 39 | . 2 8 29 . Heat Flow Errors 12 | . 2 4 6 . Energy Discharges 19 | . 5 2 12 . Parts Rejected 1 | . . . 1 . Parts Fused 2 | . . 1 1 . Data Loss (minor) 16 | . 4 3 9 . Data Loss (major) 8 | . 1 1 6 . Misfires 4 | . 1 1 2 . Alerts 3 | . 1 . 2 . Weapon Failures 3 | . . . 3 . Overload Shots . | . . . . . Overflow Damage 21 | . . . 21 . Projectiles 15 | . . . 15 . Explosions 6 | . . . 6 . Melee . | . . . . . Knockbacks 1 | . . . 1 . Impact . | . . . . . Kinetic 1 | . . . 1 . Secondary . | . . . . . Self-Inflicted Damage . | . . . . . Shots . | . . . . . Rammed 6 | . . . . 6 Targets Rammed 6 | . . . . 6 Kicked . | . . . . . Crushed . | . . . . . Highest Temperature 267 | . 247 267 230 40 Average Temperature 66 | . 67 101 47 21 Received Heat Transfer 333 | . 114 . 219 . Effects 3 | . . . 3 . Energy Bleed 1 | . . . 1 . Interference 2 | . . . 2 . Siege Activations . | . . . . . Robots Corrupted . | . . . . . Combat Hostiles . | . . . . . Parts Fried . | . . . . . Impact Corruptions . | . . . . . Robots Melted . | . . . . . Combat Hostiles . | . . . . . Parts Melted 1 | . 1 . . . Heat Transferred 1406 | . 777 74 555 . Parts Sabotaged . | . . . . . Parts Stolen . | . . . . . Parts Stripped . | . . . . . Power Chain Reactions . | . . . . . Missiles Intercepted . | . . . . . Alert | -11 -10 -10 -10 -8 ------- Run | Yrd Mat Min Sub Mat Peak Influence 333 | 20 233 57 . 333 Initial 332 | . 13 . . 332 Average 53 | 8 73 5 . 330 Maximum Alert Level 1 | . 1 . . 1 Low Security (%) 90 | 100 92 100 . . Level 1 9 | . 7 . . 100 Level 2 . | . . . . . Level 3 . | . . . . . Level 4 . | . . . . . Level 5 . | . . . . . High Security . | . . . . . Max Security . | . . . . . Squads Dispatched 3 | . 2 . . 1 Investigation 1 | . 1 . . . Extermination . | . . . . . Reinforcement 2 | . 1 . . 1 Assault . | . . . . . Garrison . | . . . . . Intercept . | . . . . . Searches Triggered . | . . . . . Construction Impeded . | . . . . . Haulers Reinforced . | . . . . . Active Scanning Responses . | . . . . . Cargo Convoy Interrupts . | . . . . . Stealth | -11 -10 -10 -10 -8 --------- Run | Yrd Mat Min Sub Mat Distress Signals 1 | . 1 . . . Communications Jammed . | . . . . . Distress Signals . | . . . . . Times Spotted 64 | . 12 3 42 7 Peak Tracking Total 6 | . 3 3 4 6 Tactical Retreats 7 | . 2 . 3 2 Traps | -11 -10 -10 -10 -8 ------- Run | Yrd Mat Min Sub Mat Traps Triggered 9 | . 7 . 2 . Indirectly . | . . . . . Trap Hack Attempts . | . . . . . Triggered . | . . . . . Disarmed . | . . . . . Reprogrammed . | . . . . . Reused . | . . . . . Traps Extracted . | . . . . . Installed . | . . . . . Triggered . | . . . . . Machines | -11 -10 -10 -10 -8 ---------- Run | Yrd Mat Min Sub Mat Machines Disabled 5 | . 1 . 4 . Max in Single Turn 3 | . 1 . 3 . Machines Repaired . | . . . . . Machines Dismantled . | . . . . . Machines Sabotaged . | . . . . . Overloaded Fab Kills . | . . . . . Hacking | -11 -10 -10 -10 -8 --------- Run | Yrd Mat Min Sub Mat Machines Accessed 4 | . 3 1 . . Terminals 3 | . 3 . . . Fabricators . | . . . . . Repair Stations . | . . . . . Recycling Units . | . . . . . Scanalyzers . | . . . . . Garrison Access . | . . . . . Total Hacks 8 | . 7 1 . . Successful 5 | . 4 1 . . Failed 3 | . 3 . . . Catastrophic . | . . . . . Database Lockouts . | . . . . . Manual 7 | . 7 . . . Terminals 7 | . 7 . . . Fabricators . | . . . . . Repair Stations . | . . . . . Recycling Units . | . . . . . Scanalyzers . | . . . . . Garrison Access . | . . . . . Terminal Hacks 2 | . 1 1 . . Robot Analysis 1 | . 1 . . . Open Door 1 | . . 1 . . Fabricator Hacks . | . . . . . Repair Station Hacks . | . . . . . Recycling Unit Hacks . | . . . . . Scanalyzer . | . . . . . Garrison Access Hacks . | . . . . . Unauthorized Hacks 3 | . 3 . . . Terminals 3 | . 3 . . . Botnet 3 | . 3 . . . Fabricators . | . . . . . Repair Stations . | . . . . . Recycling Units . | . . . . . Scanalyzers . | . . . . . Garrison Access . | . . . . . Data Cores Recovered . | . . . . . Used . | . . . . . Hacking Detections 3 | . 3 . . . Full Trace Events . | . . . . . Feedback Events . | . . . . . Feedback Blocked . | . . . . . Robot Schematics Acquired . | . . . . . Robots Built . | . . . . . Authchips . | . . . . . Time . | . . . . . Total Robot Build Rating . | . . . . . Part Schematics Acquired . | . . . . . Parts Built . | . . . . . Authchips . | . . . . . Time . | . . . . . Total Part Build Rating . | . . . . . Parts Repaired . | . . . . . Time . | . . . . . Parts Recycled . | . . . . . Recycled Matter . | . . . . . Retrieved Matter . | . . . . . Retrieved Components . | . . . . . Parts Scanalyzed . | . . . . . Part Schematics Acquired . | . . . . . Parts Damaged . | . . . . . Bothacking | -11 -10 -10 -10 -8 ------------ Run | Yrd Mat Min Sub Mat Used RIF Installer . | . . . . . Robots Hacked . | . . . . . Non-combat . | . . . . . Combat . | . . . . . Robot Hacks Applied . | . . . . . Relay Couplers Released . | . . . . . Fabnet Peak Effective % . | . . . . . Robots Rewired . | . . . . . Allies Hacked . | . . . . . Hacks Repelled . | . . . . . Allies | -11 -10 -10 -10 -8 -------- Run | Yrd Mat Min Sub Mat Total Allies . | . . . . . Largest Group . | . . . . . Highest-Rated Group . | . . . . . Highest-Rated Ally . | . . . . . Total Orders . | . . . . . Ally Attacks . | . . . . . Total Damage . | . . . . . Kills . | . . . . . Allies Corrupted . | . . . . . Allies Melted . | . . . . . Intel | -11 -10 -10 -10 -8 ------- Run | Yrd Mat Min Sub Mat Robot Analysis Total 1 | . 1 . . . Derelict Logs Recovered 3 | . . 1 2 . Drone Launches . | . . . . . Drone Recoveries . | . . . . . Exploration | -11 -10 -10 -10 -8 ------------- Run | Yrd Mat Min Sub Mat Turns Passed 5788 | 90 840 1029 3694 135 Spaces Moved 2932 | 44 440 613 1768 67 Core 9 | 9 . . . . Treads 2923 | 35 440 613 1768 67 Legs . | . . . . . Wheels . | . . . . . Hover . | . . . . . Flight . | . . . . . Fastest Speed 50 | 50 160 160 160 160 Average Speed 181 | 142 160 160 196 165 Slowest Speed 250 | 160 240 160 240 250 Overloaded Moves . | . . . . . Propulsion Burnouts . | . . . . . Robots Hopped . | . . . . . Cave-ins Triggered . | . . . . . Exploration Rate (%) 54 | 5 73 94 90 12 Regions Visited 4 Branch Regions 2 Pre-discovered Areas 2 | . . 1 1 . Known Exits Taken 1 | . . . 1 . Unknown Exits Taken 3 | 1 1 1 . . Scrap Searched 4 | . . 2 2 . Spaces Dug 9 | . . 7 2 . Terrain Destroyed 30 | . . 7 22 1 Melee . | . . . . . Projectile 6 | . . . 5 1 AOE 24 | . . 7 17 . Terrain Rammed . | . . . . . Walls Destroyed . | . . . . . Machines Disabled . | . . . . . Actions | -11 -10 -10 -10 -8 --------- Run | Yrd Mat Min Sub Mat Total 3187 | 61 514 657 1876 79 Wait 81 | . 21 37 20 3 Move 2928 | 43 439 612 1767 67 Hop . | . . . . . Pick Up 19 | 7 9 2 1 . Fast Attach 22 | 7 8 . 6 1 Attach 1 | . . . 1 . Detach 1 | . . . 1 . Swap 9 | . 3 2 3 1 Drop 11 | . 5 1 5 . Fire 109 | 4 29 3 72 1 Melee . | . . . . . Ram . | . . . . . Kick . | . . . . . Crush 6 | . . . . 6 Escape Stasis . | . . . . . Rewire . | . . . . . Trap . | . . . . . Miscellaneous . | . . . . . Route ------- -11/Scrapyard -10/Materials (discovered 3 exits: [*Mat x2] / *Min) -10/Mines (discovered 3 exits: [*Mat x2] / [*Sub]) -10/Subcaves (discovered 3 exits: *Mat x2 / [*Rec]) -8/Materials (discovered 1 exit: Fac) History --------- Turn | Location | Event 13 | -11/Scrapyard | Discovered new exit (range 14) 91 | -11/Scrapyard | Entered Materials 316 | -10/Materials | Build established: Mutant 383 | -10/Materials | Discovered new exit (range 3) 636 | -10/Materials | Discovered new exit (range 9) 907 | -10/Materials | Discovered new exit (range 15) 931 | -10/Materials | Entered Mines 940 | -10/Mines | Met a Derelict who couldn't figure out how to use a Trap Extractor 1048 | -10/Mines | Received a Rocket Launcher from a helpful Derelict 1306 | -10/Mines | Discovered new exit (range 6) 1382 | -10/Mines | Found a hidden stash of uninstalled traps 1405 | -10/Mines | Learned location of Recycling (-9) 1513 | -10/Mines | Discovered new exit (range 3) 1941 | -10/Mines | Discovered new exit (range 10) 1960 | -10/Mines | Entered Subcaves 2122 | -10/Subcaves | Shifting Twisted Machinery released Battle Cannon 2123 | -10/Subcaves | Shifting Twisted Machinery released Sub. Shrapnel Launcher 2140 | -10/Subcaves | Identified exit to Materials 2578 | -10/Subcaves | Learned 2 Materials zone layouts 3006 | -10/Subcaves | Learned location of Zion (-6) 3006 | -10/Subcaves | Met a Zionite searching for "candidates" 3071 | -10/Subcaves | A swath of the cavern ceiling suddenly collapsed 3340 | -10/Subcaves | Core integrity fell below 50% 3512 | -10/Subcaves | Shifting Twisted Machinery released Sub. Monowheel 3524 | -10/Subcaves | Shifting Twisted Machinery released Mak. Kinetic Plating 3735 | -10/Subcaves | Discovered new exit (range 15) 3877 | -10/Subcaves | A swath of the cavern ceiling suddenly collapsed 3999 | -10/Subcaves | Shifting Twisted Machinery released Sub. Power Source 4030 | -10/Subcaves | Shifting Twisted Machinery released Sub. Power Source 4416 | -10/Subcaves | Discovered exit to Materials (range 3) 5640 | -10/Subcaves | Disturbed a concealed Subdweller 5654 | -10/Subcaves | Entered Materials 5654 | -8/Materials | Evolved 4 slots: Utility x4 5655 | -8/Materials | Identified exit to Factory 5789 | -8/Materials | Self-destructed Last Messages --------------- Loading 2 Materials zones... 05662_ Acquired Lgt. Deuterium Engine. 05736_ K-01 Serf collects debris. 05747_ Discarded Lgt. Treads. 05754_ K-01 Serf collects debris. 05759_ ALERT: Hostiles spotted, dispatching reinforcements to Terminal M010. 05760_ K-01 Serf collects debris. 05763_ Lgt. Treads destroyed. 05764_ K-01 Serf collects debris. 05765_ Sub. Beam Cannon destroyed. 05769_ K-01 Serf collects debris. 05774_ Slammed into S-10 Pest. 05774_ K-01 Serf collects debris. 05776_ Slammed into S-10 Pest. 05779_ K-01 Serf collects debris. 05779_ Slammed into S-10 Pest. 05782_ Lgt. Deuterium Engine destroyed. 05782_ K-01 Serf collects debris. 05784_ Slammed into S-10 Pest. Map ----- +----------------------------------------------------+ | | | | | | | | | | | | | | | | | | | | | | | | | | | | | | | | | | | | | | | | | | | ?????????????????????????????????????????????????? | | ????????????????????????????###########??????????? | | ????????????????????????????# #??????????? | | ??########################### #??????????? | | #?# + + s@s + ! ] #??????????? | | # # """ ####### #??????????? | | " # # """ #?????# #??????????? | | " + + """ #?????# #??????????? | | " # ############ #?????# #??????????? | | # #??????????# ####### #??????????? | | ?# #???###########+### #"#+###########??????? | | #?# #???# ?????? | | ??# #???# ?????? | | ??# #???# ?????? | | ??# #??#####+########## """ #########??????? | | ??# #??# #?###### ! """ #??????????????? | | ??# #??# """ #? # """ #??????????????? | | ??# #??# """ #? T # #??????????????? | | ??# #??# """ #? + #??????????????? | | ??# #??# #? # " "" #??????????????? | | ??# #??# ! " " #? # "R"" #??????????????? | | ??# #### "Y" #? # """ #??????????????? | | ??# + """ #?############# ########???????? | | ??# ### #?????????????# # #???????? | | ??# #?##########?????????????# # #???????? | | ?# #???????????????????????????????????????????? | | ?+ #???????????????????????????????????????????? | | ?# #???????????????????????????????????????????? | | ?# #???????????????????????????????????????????? | +----------------------------------------------------+ Best States ------------- Heat Dissipation 31 Energy Generation 14 Energy Capacity 265 Matter Stores 300 Matter Capacity 300 Sight Range 16 Terrain Scan Density 10 Armor Coverage 100 Evasion (%) 40 Recoil Reduction 2 Item Schematics ----------------- None Robot Schematics ------------------ None Fabricated ------------ Nothing Alien Tech Used ----------------- None Achievements -------------- None Challenges ------------ None Game ------ Seed CloakWeaponsSink Manual? 0 Play Time 00:22:53 Cumulative 677.0 hours Start 2024.06.05 @ 14:09:04 End 2024.06.05 @ 14:44:23 Sessions 1 Manual Loads 0 Difficulty Rogue Special Mode None Game No. 676 Rogue 675 Adventurer 0 Explorer 1 Win Type - Total 32 Types 23/0/6/3/0/0/0/0/0 Lore% 84 Gallery% 90 Achievement% 79 Wizard Run 0 Options --------- ASCII 0 Keyboard 1 Movement Vi Keybinds 0 Fullscreen 1 Font 18/SmallcapsGlow Map View 76x50 Zoom Use 0% Tactical HUD 1 Map Filters NONE Filters NONE Steam 1 RUN: e3db90fa-2861-4dfd-af96-78e685905682